{"text_format":"3","workbook":"xlsx","n_sheets":3,"sheets":["Program","Veri Girişi","Ad Arama"],"not_rendered":{"defined_names":5},"read":"whole","date_system":"1900"}

{"sheet":"Program","index":0,"n_rows":23,"n_cols":9,"rows_kept":23,"merged":[[1,1,2,3]]}
[]
[null,"GÜNLÜK PROGRAM",{"$nulls":4},"Geçerli olduğu hafta: ","Bu seçim için programı göster: "]
[{"$nulls":5},{"$f":"WEEKDAY(Hafta,1)","v":3},"2012-07-03","Mahir"]
[null,null,{"$f":"$F$3=COLUMN(A$1)","v":false},{"$f":"$F$3=COLUMN(B$1)","v":false},true,false,false,false,false]
[null,null,{"$f":"COLUMN(A$1)-MATCH(TRUE,$C$4:$I$4,0)+Hafta+1","v":"2012-07-02"},"2012-07-03","2012-07-04","2012-07-05","2012-07-06","2012-07-07","2012-07-08"]
[null,"SAAT","PAZARTESİ","SALI","ÇARŞAMBA","PERŞEMBE","CUMA","CUMARTESİ","PAZAR"]
[null,"06:00:00",{"$f":"IFERROR(INDEX(tblVeri[],MATCH(C$5+$B7&AdıGöster,tblVeri[TARİH ve SAAT]&tblVeri[KİŞİ],0),3),\"\")","v":""},{"$f":"IFERROR(INDEX(tblVeri[],MATCH(D$5+$B7&AdıGöster,tblVeri[TARİH ve SAAT]&tblVeri[KİŞİ],0),3),\"\")","v":""},{"$f":"IFERROR(INDEX(tblVeri[],MATCH(E$5+$B7&AdıGöster,tblVeri[TARİH ve SAAT]&tblVeri[KİŞİ],0),3),\"\")","v":""},{"$f":"IFERROR(INDEX(tblVeri[],MATCH(F$5+$B7&AdıGöster,tblVeri[TARİH ve SAAT]&tblVeri[KİŞİ],0),3),\"\")","v":""},{"$f":"IFERROR(INDEX(tblVeri[],MATCH(G$5+$B7&AdıGöster,tblVeri[TARİH ve SAAT]&tblVeri[KİŞİ],0),3),\"\")","v":""},{"$f":"IFERROR(INDEX(tblVeri[],MATCH(H$5+$B7&AdıGöster,tblVeri[TARİH ve SAAT]&tblVeri[KİŞİ],0),3),\"\")","v":""},{"$f":"IFERROR(INDEX(tblVeri[],MATCH(I$5+$B7&AdıGöster,tblVeri[TARİH ve SAAT]&tblVeri[KİŞİ],0),3),\"\")","v":""}]
[null,"07:00:00",{"$f":"IFERROR(INDEX(tblVeri[],MATCH(C$5+$B8&AdıGöster,tblVeri[TARİH ve SAAT]&tblVeri[KİŞİ],0),3),\"\")","v":""},{"$f":"IFERROR(INDEX(tblVeri[],MATCH(D$5+$B8&AdıGöster,tblVeri[TARİH ve SAAT]&tblVeri[KİŞİ],0),3),\"\")","v":""},{"$f":"IFERROR(INDEX(tblVeri[],MATCH(E$5+$B8&AdıGöster,tblVeri[TARİH ve SAAT]&tblVeri[KİŞİ],0),3),\"\")","v":""},{"$f":"IFERROR(INDEX(tblVeri[],MATCH(F$5+$B8&AdıGöster,tblVeri[TARİH ve SAAT]&tblVeri[KİŞİ],0),3),\"\")","v":""},{"$f":"IFERROR(INDEX(tblVeri[],MATCH(G$5+$B8&AdıGöster,tblVeri[TARİH ve SAAT]&tblVeri[KİŞİ],0),3),\"\")","v":""},{"$f":"IFERROR(INDEX(tblVeri[],MATCH(H$5+$B8&AdıGöster,tblVeri[TARİH ve SAAT]&tblVeri[KİŞİ],0),3),\"\")","v":""},{"$f":"IFERROR(INDEX(tblVeri[],MATCH(I$5+$B8&AdıGöster,tblVeri[TARİH ve SAAT]&tblVeri[KİŞİ],0),3),\"\")","v":""}]
[null,"08:00:00",{"$f":"IFERROR(INDEX(tblVeri[],MATCH(C$5+$B9&AdıGöster,tblVeri[TARİH ve SAAT]&tblVeri[KİŞİ],0),3),\"\")","v":""},{"$f":"IFERROR(INDEX(tblVeri[],MATCH(D$5+$B9&AdıGöster,tblVeri[TARİH ve SAAT]&tblVeri[KİŞİ],0),3),\"\")","v":""},{"$f":"IFERROR(INDEX(tblVeri[],MATCH(E$5+$B9&AdıGöster,tblVeri[TARİH ve SAAT]&tblVeri[KİŞİ],0),3),\"\")","v":""},{"$f":"IFERROR(INDEX(tblVeri[],MATCH(F$5+$B9&AdıGöster,tblVeri[TARİH ve SAAT]&tblVeri[KİŞİ],0),3),\"\")","v":""},{"$f":"IFERROR(INDEX(tblVeri[],MATCH(G$5+$B9&AdıGöster,tblVeri[TARİH ve SAAT]&tblVeri[KİŞİ],0),3),\"\")","v":""},{"$f":"IFERROR(INDEX(tblVeri[],MATCH(H$5+$B9&AdıGöster,tblVeri[TARİH ve SAAT]&tblVeri[KİŞİ],0),3),\"\")","v":""},{"$f":"IFERROR(INDEX(tblVeri[],MATCH(I$5+$B9&AdıGöster,tblVeri[TARİH ve SAAT]&tblVeri[KİŞİ],0),3),\"\")","v":""}]
[null,"09:00:00",{"$f":"IFERROR(INDEX(tblVeri[],MATCH(C$5+$B10&AdıGöster,tblVeri[TARİH ve SAAT]&tblVeri[KİŞİ],0),3),\"\")","v":""},{"$f":"IFERROR(INDEX(tblVeri[],MATCH(D$5+$B10&AdıGöster,tblVeri[TARİH ve SAAT]&tblVeri[KİŞİ],0),3),\"\")","v":""},{"$f":"IFERROR(INDEX(tblVeri[],MATCH(E$5+$B10&AdıGöster,tblVeri[TARİH ve SAAT]&tblVeri[KİŞİ],0),3),\"\")","v":""},{"$f":"IFERROR(INDEX(tblVeri[],MATCH(F$5+$B10&AdıGöster,tblVeri[TARİH ve SAAT]&tblVeri[KİŞİ],0),3),\"\")","v":""},{"$f":"IFERROR(INDEX(tblVeri[],MATCH(G$5+$B10&AdıGöster,tblVeri[TARİH ve SAAT]&tblVeri[KİŞİ],0),3),\"\")","v":""},{"$f":"IFERROR(INDEX(tblVeri[],MATCH(H$5+$B10&AdıGöster,tblVeri[TARİH ve SAAT]&tblVeri[KİŞİ],0),3),\"\")","v":""},{"$f":"IFERROR(INDEX(tblVeri[],MATCH(I$5+$B10&AdıGöster,tblVeri[TARİH ve SAAT]&tblVeri[KİŞİ],0),3),\"\")","v":""}]
[null,"10:00:00",{"$f":"IFERROR(INDEX(tblVeri[],MATCH(C$5+$B11&AdıGöster,tblVeri[TARİH ve SAAT]&tblVeri[KİŞİ],0),3),\"\")","v":""},{"$f":"IFERROR(INDEX(tblVeri[],MATCH(D$5+$B11&AdıGöster,tblVeri[TARİH ve SAAT]&tblVeri[KİŞİ],0),3),\"\")","v":""},{"$f":"IFERROR(INDEX(tblVeri[],MATCH(E$5+$B11&AdıGöster,tblVeri[TARİH ve SAAT]&tblVeri[KİŞİ],0),3),\"\")","v":"Şehir merkezinde geçit töreni"},{"$f":"IFERROR(INDEX(tblVeri[],MATCH(F$5+$B11&AdıGöster,tblVeri[TARİH ve SAAT]&tblVeri[KİŞİ],0),3),\"\")","v":""},{"$f":"IFERROR(INDEX(tblVeri[],MATCH(G$5+$B11&AdıGöster,tblVeri[TARİH ve SAAT]&tblVeri[KİŞİ],0),3),\"\")","v":""},{"$f":"IFERROR(INDEX(tblVeri[],MATCH(H$5+$B11&AdıGöster,tblVeri[TARİH ve SAAT]&tblVeri[KİŞİ],0),3),\"\")","v":""},{"$f":"IFERROR(INDEX(tblVeri[],MATCH(I$5+$B11&AdıGöster,tblVeri[TARİH ve SAAT]&tblVeri[KİŞİ],0),3),\"\")","v":""}]
[null,"11:00:00",{"$f":"IFERROR(INDEX(tblVeri[],MATCH(C$5+$B12&AdıGöster,tblVeri[TARİH ve SAAT]&tblVeri[KİŞİ],0),3),\"\")","v":""},{"$f":"IFERROR(INDEX(tblVeri[],MATCH(D$5+$B12&AdıGöster,tblVeri[TARİH ve SAAT]&tblVeri[KİŞİ],0),3),\"\")","v":""},{"$f":"IFERROR(INDEX(tblVeri[],MATCH(E$5+$B12&AdıGöster,tblVeri[TARİH ve SAAT]&tblVeri[KİŞİ],0),3),\"\")","v":""},{"$f":"IFERROR(INDEX(tblVeri[],MATCH(F$5+$B12&AdıGöster,tblVeri[TARİH ve SAAT]&tblVeri[KİŞİ],0),3),\"\")","v":""},{"$f":"IFERROR(INDEX(tblVeri[],MATCH(G$5+$B12&AdıGöster,tblVeri[TARİH ve SAAT]&tblVeri[KİŞİ],0),3),\"\")","v":"Aile ile barbekü"},{"$f":"IFERROR(INDEX(tblVeri[],MATCH(H$5+$B12&AdıGöster,tblVeri[TARİH ve SAAT]&tblVeri[KİŞİ],0),3),\"\")","v":""},{"$f":"IFERROR(INDEX(tblVeri[],MATCH(I$5+$B12&AdıGöster,tblVeri[TARİH ve SAAT]&tblVeri[KİŞİ],0),3),\"\")","v":""}]
[null,"12:00:00",{"$f":"IFERROR(INDEX(tblVeri[],MATCH(C$5+$B13&AdıGöster,tblVeri[TARİH ve SAAT]&tblVeri[KİŞİ],0),3),\"\")","v":""},{"$f":"IFERROR(INDEX(tblVeri[],MATCH(D$5+$B13&AdıGöster,tblVeri[TARİH ve SAAT]&tblVeri[KİŞİ],0),3),\"\")","v":""},{"$f":"IFERROR(INDEX(tblVeri[],MATCH(E$5+$B13&AdıGöster,tblVeri[TARİH ve SAAT]&tblVeri[KİŞİ],0),3),\"\")","v":""},{"$f":"IFERROR(INDEX(tblVeri[],MATCH(F$5+$B13&AdıGöster,tblVeri[TARİH ve SAAT]&tblVeri[KİŞİ],0),3),\"\")","v":""},{"$f":"IFERROR(INDEX(tblVeri[],MATCH(G$5+$B13&AdıGöster,tblVeri[TARİH ve SAAT]&tblVeri[KİŞİ],0),3),\"\")","v":""},{"$f":"IFERROR(INDEX(tblVeri[],MATCH(H$5+$B13&AdıGöster,tblVeri[TARİH ve SAAT]&tblVeri[KİŞİ],0),3),\"\")","v":""},{"$f":"IFERROR(INDEX(tblVeri[],MATCH(I$5+$B13&AdıGöster,tblVeri[TARİH ve SAAT]&tblVeri[KİŞİ],0),3),\"\")","v":""}]
[null,"13:00:00",{"$f":"IFERROR(INDEX(tblVeri[],MATCH(C$5+$B14&AdıGöster,tblVeri[TARİH ve SAAT]&tblVeri[KİŞİ],0),3),\"\")","v":""},{"$f":"IFERROR(INDEX(tblVeri[],MATCH(D$5+$B14&AdıGöster,tblVeri[TARİH ve SAAT]&tblVeri[KİŞİ],0),3),\"\")","v":""},{"$f":"IFERROR(INDEX(tblVeri[],MATCH(E$5+$B14&AdıGöster,tblVeri[TARİH ve SAAT]&tblVeri[KİŞİ],0),3),\"\")","v":""},{"$f":"IFERROR(INDEX(tblVeri[],MATCH(F$5+$B14&AdıGöster,tblVeri[TARİH ve SAAT]&tblVeri[KİŞİ],0),3),\"\")","v":""},{"$f":"IFERROR(INDEX(tblVeri[],MATCH(G$5+$B14&AdıGöster,tblVeri[TARİH ve SAAT]&tblVeri[KİŞİ],0),3),\"\")","v":""},{"$f":"IFERROR(INDEX(tblVeri[],MATCH(H$5+$B14&AdıGöster,tblVeri[TARİH ve SAAT]&tblVeri[KİŞİ],0),3),\"\")","v":""},{"$f":"IFERROR(INDEX(tblVeri[],MATCH(I$5+$B14&AdıGöster,tblVeri[TARİH ve SAAT]&tblVeri[KİŞİ],0),3),\"\")","v":""}]
[null,"14:00:00",{"$f":"IFERROR(INDEX(tblVeri[],MATCH(C$5+$B15&AdıGöster,tblVeri[TARİH ve SAAT]&tblVeri[KİŞİ],0),3),\"\")","v":""},{"$f":"IFERROR(INDEX(tblVeri[],MATCH(D$5+$B15&AdıGöster,tblVeri[TARİH ve SAAT]&tblVeri[KİŞİ],0),3),\"\")","v":""},{"$f":"IFERROR(INDEX(tblVeri[],MATCH(E$5+$B15&AdıGöster,tblVeri[TARİH ve SAAT]&tblVeri[KİŞİ],0),3),\"\")","v":""},{"$f":"IFERROR(INDEX(tblVeri[],MATCH(F$5+$B15&AdıGöster,tblVeri[TARİH ve SAAT]&tblVeri[KİŞİ],0),3),\"\")","v":""},{"$f":"IFERROR(INDEX(tblVeri[],MATCH(G$5+$B15&AdıGöster,tblVeri[TARİH ve SAAT]&tblVeri[KİŞİ],0),3),\"\")","v":""},{"$f":"IFERROR(INDEX(tblVeri[],MATCH(H$5+$B15&AdıGöster,tblVeri[TARİH ve SAAT]&tblVeri[KİŞİ],0),3),\"\")","v":""},{"$f":"IFERROR(INDEX(tblVeri[],MATCH(I$5+$B15&AdıGöster,tblVeri[TARİH ve SAAT]&tblVeri[KİŞİ],0),3),\"\")","v":""}]
[null,"15:00:00",{"$f":"IFERROR(INDEX(tblVeri[],MATCH(C$5+$B16&AdıGöster,tblVeri[TARİH ve SAAT]&tblVeri[KİŞİ],0),3),\"\")","v":""},{"$f":"IFERROR(INDEX(tblVeri[],MATCH(D$5+$B16&AdıGöster,tblVeri[TARİH ve SAAT]&tblVeri[KİŞİ],0),3),\"\")","v":""},{"$f":"IFERROR(INDEX(tblVeri[],MATCH(E$5+$B16&AdıGöster,tblVeri[TARİH ve SAAT]&tblVeri[KİŞİ],0),3),\"\")","v":""},{"$f":"IFERROR(INDEX(tblVeri[],MATCH(F$5+$B16&AdıGöster,tblVeri[TARİH ve SAAT]&tblVeri[KİŞİ],0),3),\"\")","v":""},{"$f":"IFERROR(INDEX(tblVeri[],MATCH(G$5+$B16&AdıGöster,tblVeri[TARİH ve SAAT]&tblVeri[KİŞİ],0),3),\"\")","v":""},{"$f":"IFERROR(INDEX(tblVeri[],MATCH(H$5+$B16&AdıGöster,tblVeri[TARİH ve SAAT]&tblVeri[KİŞİ],0),3),\"\")","v":""},{"$f":"IFERROR(INDEX(tblVeri[],MATCH(I$5+$B16&AdıGöster,tblVeri[TARİH ve SAAT]&tblVeri[KİŞİ],0),3),\"\")","v":""}]
[null,"16:00:00",{"$f":"IFERROR(INDEX(tblVeri[],MATCH(C$5+$B17&AdıGöster,tblVeri[TARİH ve SAAT]&tblVeri[KİŞİ],0),3),\"\")","v":""},{"$f":"IFERROR(INDEX(tblVeri[],MATCH(D$5+$B17&AdıGöster,tblVeri[TARİH ve SAAT]&tblVeri[KİŞİ],0),3),\"\")","v":"Kabine geçiş"},{"$f":"IFERROR(INDEX(tblVeri[],MATCH(E$5+$B17&AdıGöster,tblVeri[TARİH ve SAAT]&tblVeri[KİŞİ],0),3),\"\")","v":""},{"$f":"IFERROR(INDEX(tblVeri[],MATCH(F$5+$B17&AdıGöster,tblVeri[TARİH ve SAAT]&tblVeri[KİŞİ],0),3),\"\")","v":""},{"$f":"IFERROR(INDEX(tblVeri[],MATCH(G$5+$B17&AdıGöster,tblVeri[TARİH ve SAAT]&tblVeri[KİŞİ],0),3),\"\")","v":""},{"$f":"IFERROR(INDEX(tblVeri[],MATCH(H$5+$B17&AdıGöster,tblVeri[TARİH ve SAAT]&tblVeri[KİŞİ],0),3),\"\")","v":""},{"$f":"IFERROR(INDEX(tblVeri[],MATCH(I$5+$B17&AdıGöster,tblVeri[TARİH ve SAAT]&tblVeri[KİŞİ],0),3),\"\")","v":""}]
[null,"17:00:00",{"$f":"IFERROR(INDEX(tblVeri[],MATCH(C$5+$B18&AdıGöster,tblVeri[TARİH ve SAAT]&tblVeri[KİŞİ],0),3),\"\")","v":""},{"$f":"IFERROR(INDEX(tblVeri[],MATCH(D$5+$B18&AdıGöster,tblVeri[TARİH ve SAAT]&tblVeri[KİŞİ],0),3),\"\")","v":""},{"$f":"IFERROR(INDEX(tblVeri[],MATCH(E$5+$B18&AdıGöster,tblVeri[TARİH ve SAAT]&tblVeri[KİŞİ],0),3),\"\")","v":""},{"$f":"IFERROR(INDEX(tblVeri[],MATCH(F$5+$B18&AdıGöster,tblVeri[TARİH ve SAAT]&tblVeri[KİŞİ],0),3),\"\")","v":""},{"$f":"IFERROR(INDEX(tblVeri[],MATCH(G$5+$B18&AdıGöster,tblVeri[TARİH ve SAAT]&tblVeri[KİŞİ],0),3),\"\")","v":""},{"$f":"IFERROR(INDEX(tblVeri[],MATCH(H$5+$B18&AdıGöster,tblVeri[TARİH ve SAAT]&tblVeri[KİŞİ],0),3),\"\")","v":""},{"$f":"IFERROR(INDEX(tblVeri[],MATCH(I$5+$B18&AdıGöster,tblVeri[TARİH ve SAAT]&tblVeri[KİŞİ],0),3),\"\")","v":"Eve dönüş"}]
[null,"18:00:00",{"$f":"IFERROR(INDEX(tblVeri[],MATCH(C$5+$B19&AdıGöster,tblVeri[TARİH ve SAAT]&tblVeri[KİŞİ],0),3),\"\")","v":"İlacını al"},{"$f":"IFERROR(INDEX(tblVeri[],MATCH(D$5+$B19&AdıGöster,tblVeri[TARİH ve SAAT]&tblVeri[KİŞİ],0),3),\"\")","v":""},{"$f":"IFERROR(INDEX(tblVeri[],MATCH(E$5+$B19&AdıGöster,tblVeri[TARİH ve SAAT]&tblVeri[KİŞİ],0),3),\"\")","v":""},{"$f":"IFERROR(INDEX(tblVeri[],MATCH(F$5+$B19&AdıGöster,tblVeri[TARİH ve SAAT]&tblVeri[KİŞİ],0),3),\"\")","v":""},{"$f":"IFERROR(INDEX(tblVeri[],MATCH(G$5+$B19&AdıGöster,tblVeri[TARİH ve SAAT]&tblVeri[KİŞİ],0),3),\"\")","v":""},{"$f":"IFERROR(INDEX(tblVeri[],MATCH(H$5+$B19&AdıGöster,tblVeri[TARİH ve SAAT]&tblVeri[KİŞİ],0),3),\"\")","v":""},{"$f":"IFERROR(INDEX(tblVeri[],MATCH(I$5+$B19&AdıGöster,tblVeri[TARİH ve SAAT]&tblVeri[KİŞİ],0),3),\"\")","v":""}]
[null,"19:00:00",{"$f":"IFERROR(INDEX(tblVeri[],MATCH(C$5+$B20&AdıGöster,tblVeri[TARİH ve SAAT]&tblVeri[KİŞİ],0),3),\"\")","v":""},{"$f":"IFERROR(INDEX(tblVeri[],MATCH(D$5+$B20&AdıGöster,tblVeri[TARİH ve SAAT]&tblVeri[KİŞİ],0),3),\"\")","v":""},{"$f":"IFERROR(INDEX(tblVeri[],MATCH(E$5+$B20&AdıGöster,tblVeri[TARİH ve SAAT]&tblVeri[KİŞİ],0),3),\"\")","v":""},{"$f":"IFERROR(INDEX(tblVeri[],MATCH(F$5+$B20&AdıGöster,tblVeri[TARİH ve SAAT]&tblVeri[KİŞİ],0),3),\"\")","v":""},{"$f":"IFERROR(INDEX(tblVeri[],MATCH(G$5+$B20&AdıGöster,tblVeri[TARİH ve SAAT]&tblVeri[KİŞİ],0),3),\"\")","v":""},{"$f":"IFERROR(INDEX(tblVeri[],MATCH(H$5+$B20&AdıGöster,tblVeri[TARİH ve SAAT]&tblVeri[KİŞİ],0),3),\"\")","v":""},{"$f":"IFERROR(INDEX(tblVeri[],MATCH(I$5+$B20&AdıGöster,tblVeri[TARİH ve SAAT]&tblVeri[KİŞİ],0),3),\"\")","v":""}]
[null,"20:00:00",{"$f":"IFERROR(INDEX(tblVeri[],MATCH(C$5+$B21&AdıGöster,tblVeri[TARİH ve SAAT]&tblVeri[KİŞİ],0),3),\"\")","v":"Aile ile film akşamı"},{"$f":"IFERROR(INDEX(tblVeri[],MATCH(D$5+$B21&AdıGöster,tblVeri[TARİH ve SAAT]&tblVeri[KİŞİ],0),3),\"\")","v":""},{"$f":"IFERROR(INDEX(tblVeri[],MATCH(E$5+$B21&AdıGöster,tblVeri[TARİH ve SAAT]&tblVeri[KİŞİ],0),3),\"\")","v":""},{"$f":"IFERROR(INDEX(tblVeri[],MATCH(F$5+$B21&AdıGöster,tblVeri[TARİH ve SAAT]&tblVeri[KİŞİ],0),3),\"\")","v":"Havai fişek gösterisi"},{"$f":"IFERROR(INDEX(tblVeri[],MATCH(G$5+$B21&AdıGöster,tblVeri[TARİH ve SAAT]&tblVeri[KİŞİ],0),3),\"\")","v":""},{"$f":"IFERROR(INDEX(tblVeri[],MATCH(H$5+$B21&AdıGöster,tblVeri[TARİH ve SAAT]&tblVeri[KİŞİ],0),3),\"\")","v":""},{"$f":"IFERROR(INDEX(tblVeri[],MATCH(I$5+$B21&AdıGöster,tblVeri[TARİH ve SAAT]&tblVeri[KİŞİ],0),3),\"\")","v":""}]
[null,"21:00:00",{"$f":"IFERROR(INDEX(tblVeri[],MATCH(C$5+$B22&AdıGöster,tblVeri[TARİH ve SAAT]&tblVeri[KİŞİ],0),3),\"\")","v":""},{"$f":"IFERROR(INDEX(tblVeri[],MATCH(D$5+$B22&AdıGöster,tblVeri[TARİH ve SAAT]&tblVeri[KİŞİ],0),3),\"\")","v":""},{"$f":"IFERROR(INDEX(tblVeri[],MATCH(E$5+$B22&AdıGöster,tblVeri[TARİH ve SAAT]&tblVeri[KİŞİ],0),3),\"\")","v":""},{"$f":"IFERROR(INDEX(tblVeri[],MATCH(F$5+$B22&AdıGöster,tblVeri[TARİH ve SAAT]&tblVeri[KİŞİ],0),3),\"\")","v":""},{"$f":"IFERROR(INDEX(tblVeri[],MATCH(G$5+$B22&AdıGöster,tblVeri[TARİH ve SAAT]&tblVeri[KİŞİ],0),3),\"\")","v":""},{"$f":"IFERROR(INDEX(tblVeri[],MATCH(H$5+$B22&AdıGöster,tblVeri[TARİH ve SAAT]&tblVeri[KİŞİ],0),3),\"\")","v":""},{"$f":"IFERROR(INDEX(tblVeri[],MATCH(I$5+$B22&AdıGöster,tblVeri[TARİH ve SAAT]&tblVeri[KİŞİ],0),3),\"\")","v":""}]
[null,"22:00:00",{"$f":"IFERROR(INDEX(tblVeri[],MATCH(C$5+$B23&AdıGöster,tblVeri[TARİH ve SAAT]&tblVeri[KİŞİ],0),3),\"\")","v":""},{"$f":"IFERROR(INDEX(tblVeri[],MATCH(D$5+$B23&AdıGöster,tblVeri[TARİH ve SAAT]&tblVeri[KİŞİ],0),3),\"\")","v":""},{"$f":"IFERROR(INDEX(tblVeri[],MATCH(E$5+$B23&AdıGöster,tblVeri[TARİH ve SAAT]&tblVeri[KİŞİ],0),3),\"\")","v":""},{"$f":"IFERROR(INDEX(tblVeri[],MATCH(F$5+$B23&AdıGöster,tblVeri[TARİH ve SAAT]&tblVeri[KİŞİ],0),3),\"\")","v":""},{"$f":"IFERROR(INDEX(tblVeri[],MATCH(G$5+$B23&AdıGöster,tblVeri[TARİH ve SAAT]&tblVeri[KİŞİ],0),3),\"\")","v":""},{"$f":"IFERROR(INDEX(tblVeri[],MATCH(H$5+$B23&AdıGöster,tblVeri[TARİH ve SAAT]&tblVeri[KİŞİ],0),3),\"\")","v":""},{"$f":"IFERROR(INDEX(tblVeri[],MATCH(I$5+$B23&AdıGöster,tblVeri[TARİH ve SAAT]&tblVeri[KİŞİ],0),3),\"\")","v":""}]

{"sheet":"Veri Girişi","index":1,"n_rows":14,"n_cols":4,"rows_kept":14}
[null,"VERİ GİRİŞİ"]
[]
[null,"TARİH ve SAAT","KİŞİ","GÖREV"]
[null,"2012-07-02T08:00:00","Esra","Doktor randevusu"]
[null,"2012-07-02T18:00:00","Mahir","İlacını al"]
[null,"2012-07-02T18:30:00","Mahir","Aslı ile akşam yemeği"]
[null,"2012-07-02T20:00:00","Mahir","Aile ile film akşamı"]
[null,"2012-07-03T16:00:00","Mahir","Kabine geçiş"]
[null,"2012-07-04T10:00:00","Mahir","Şehir merkezinde geçit töreni"]
[null,"2012-07-05T20:00:00","Mahir","Havai fişek gösterisi"]
[null,"2012-07-06T11:00:00","Mahir","Aile ile barbekü"]
[null,"2012-07-07","Mahir","Toplu piknik"]
[null,"2012-07-08T17:00:00","Mahir","Eve dönüş"]
[null,"2012-07-02T10:00:00","Esra","Piyano dersleri"]

{"sheet":"Ad Arama","index":2,"n_rows":132,"n_cols":2,"rows_kept":132,"hidden":true,"merged":[[0,0,0,1]]}
["Program sayfasının H3 hücresindeki açılır isim listesi bu sayfa toplanır. Bu sayfa üzerinde yapılacak herhangi bir değişiklik hataya neden olabilir."]
["BENZERSİZ AD","SATIR NUMARASI"]
[{"$f":"IFERROR(INDEX(KişiAlanı,MATCH(0,COUNTIF($A$2:A2,KişiAlanı),0)),\"\")","v":"Esra"},{"$f":"IF(A3=\"\",\"\",ROW())","v":3}]
[{"$f":"IFERROR(INDEX(KişiAlanı,MATCH(0,COUNTIF($A$2:A3,KişiAlanı),0)),\"\")","v":"Mahir"},{"$f":"IF(A4=\"\",\"\",ROW())","v":4}]
[{"$f":"IFERROR(INDEX(KişiAlanı,MATCH(0,COUNTIF($A$2:A4,KişiAlanı),0)),\"\")","v":""},""]
[{"$f":"IFERROR(INDEX(KişiAlanı,MATCH(0,COUNTIF($A$2:A5,KişiAlanı),0)),\"\")","v":""},""]
[{"$f":"IFERROR(INDEX(KişiAlanı,MATCH(0,COUNTIF($A$2:A6,KişiAlanı),0)),\"\")","v":""},""]
[{"$f":"IFERROR(INDEX(KişiAlanı,MATCH(0,COUNTIF($A$2:A7,KişiAlanı),0)),\"\")","v":""},""]
[{"$f":"IFERROR(INDEX(KişiAlanı,MATCH(0,COUNTIF($A$2:A8,KişiAlanı),0)),\"\")","v":""},""]
[{"$f":"IFERROR(INDEX(KişiAlanı,MATCH(0,COUNTIF($A$2:A9,KişiAlanı),0)),\"\")","v":""},""]
[{"$f":"IFERROR(INDEX(KişiAlanı,MATCH(0,COUNTIF($A$2:A10,KişiAlanı),0)),\"\")","v":""},""]
[{"$f":"IFERROR(INDEX(KişiAlanı,MATCH(0,COUNTIF($A$2:A11,KişiAlanı),0)),\"\")","v":""},""]
[{"$f":"IFERROR(INDEX(KişiAlanı,MATCH(0,COUNTIF($A$2:A12,KişiAlanı),0)),\"\")","v":""},""]
[{"$f":"IFERROR(INDEX(KişiAlanı,MATCH(0,COUNTIF($A$2:A13,KişiAlanı),0)),\"\")","v":""},""]
[{"$f":"IFERROR(INDEX(KişiAlanı,MATCH(0,COUNTIF($A$2:A14,KişiAlanı),0)),\"\")","v":""},""]
[{"$f":"IFERROR(INDEX(KişiAlanı,MATCH(0,COUNTIF($A$2:A15,KişiAlanı),0)),\"\")","v":""},""]
[{"$f":"IFERROR(INDEX(KişiAlanı,MATCH(0,COUNTIF($A$2:A16,KişiAlanı),0)),\"\")","v":""},""]
[{"$f":"IFERROR(INDEX(KişiAlanı,MATCH(0,COUNTIF($A$2:A17,KişiAlanı),0)),\"\")","v":""},""]
[{"$f":"IFERROR(INDEX(KişiAlanı,MATCH(0,COUNTIF($A$2:A18,KişiAlanı),0)),\"\")","v":""},""]
[{"$f":"IFERROR(INDEX(KişiAlanı,MATCH(0,COUNTIF($A$2:A19,KişiAlanı),0)),\"\")","v":""},""]
[{"$f":"IFERROR(INDEX(KişiAlanı,MATCH(0,COUNTIF($A$2:A20,KişiAlanı),0)),\"\")","v":""},""]
[{"$f":"IFERROR(INDEX(KişiAlanı,MATCH(0,COUNTIF($A$2:A21,KişiAlanı),0)),\"\")","v":""},""]
[{"$f":"IFERROR(INDEX(KişiAlanı,MATCH(0,COUNTIF($A$2:A22,KişiAlanı),0)),\"\")","v":""},""]
[{"$f":"IFERROR(INDEX(KişiAlanı,MATCH(0,COUNTIF($A$2:A23,KişiAlanı),0)),\"\")","v":""},""]
[{"$f":"IFERROR(INDEX(KişiAlanı,MATCH(0,COUNTIF($A$2:A24,KişiAlanı),0)),\"\")","v":""},""]
[{"$f":"IFERROR(INDEX(KişiAlanı,MATCH(0,COUNTIF($A$2:A25,KişiAlanı),0)),\"\")","v":""},""]
[{"$f":"IFERROR(INDEX(KişiAlanı,MATCH(0,COUNTIF($A$2:A26,KişiAlanı),0)),\"\")","v":""},""]
[{"$f":"IFERROR(INDEX(KişiAlanı,MATCH(0,COUNTIF($A$2:A27,KişiAlanı),0)),\"\")","v":""},""]
[{"$f":"IFERROR(INDEX(KişiAlanı,MATCH(0,COUNTIF($A$2:A28,KişiAlanı),0)),\"\")","v":""},""]
[{"$f":"IFERROR(INDEX(KişiAlanı,MATCH(0,COUNTIF($A$2:A29,KişiAlanı),0)),\"\")","v":""},""]
[{"$f":"IFERROR(INDEX(KişiAlanı,MATCH(0,COUNTIF($A$2:A30,KişiAlanı),0)),\"\")","v":""},""]
[{"$f":"IFERROR(INDEX(KişiAlanı,MATCH(0,COUNTIF($A$2:A31,KişiAlanı),0)),\"\")","v":""},""]
[{"$f":"IFERROR(INDEX(KişiAlanı,MATCH(0,COUNTIF($A$2:A32,KişiAlanı),0)),\"\")","v":""},""]
[{"$f":"IFERROR(INDEX(KişiAlanı,MATCH(0,COUNTIF($A$2:A33,KişiAlanı),0)),\"\")","v":""},""]
[{"$f":"IFERROR(INDEX(KişiAlanı,MATCH(0,COUNTIF($A$2:A34,KişiAlanı),0)),\"\")","v":""},""]
[{"$f":"IFERROR(INDEX(KişiAlanı,MATCH(0,COUNTIF($A$2:A35,KişiAlanı),0)),\"\")","v":""},""]
[{"$f":"IFERROR(INDEX(KişiAlanı,MATCH(0,COUNTIF($A$2:A36,KişiAlanı),0)),\"\")","v":""},""]
[{"$f":"IFERROR(INDEX(KişiAlanı,MATCH(0,COUNTIF($A$2:A37,KişiAlanı),0)),\"\")","v":""},""]
[{"$f":"IFERROR(INDEX(KişiAlanı,MATCH(0,COUNTIF($A$2:A38,KişiAlanı),0)),\"\")","v":""},""]
[{"$f":"IFERROR(INDEX(KişiAlanı,MATCH(0,COUNTIF($A$2:A39,KişiAlanı),0)),\"\")","v":""},""]
[{"$f":"IFERROR(INDEX(KişiAlanı,MATCH(0,COUNTIF($A$2:A40,KişiAlanı),0)),\"\")","v":""},""]
[{"$f":"IFERROR(INDEX(KişiAlanı,MATCH(0,COUNTIF($A$2:A41,KişiAlanı),0)),\"\")","v":""},""]
[{"$f":"IFERROR(INDEX(KişiAlanı,MATCH(0,COUNTIF($A$2:A42,KişiAlanı),0)),\"\")","v":""},""]
[{"$f":"IFERROR(INDEX(KişiAlanı,MATCH(0,COUNTIF($A$2:A43,KişiAlanı),0)),\"\")","v":""},""]
[{"$f":"IFERROR(INDEX(KişiAlanı,MATCH(0,COUNTIF($A$2:A44,KişiAlanı),0)),\"\")","v":""},""]
[{"$f":"IFERROR(INDEX(KişiAlanı,MATCH(0,COUNTIF($A$2:A45,KişiAlanı),0)),\"\")","v":""},""]
[{"$f":"IFERROR(INDEX(KişiAlanı,MATCH(0,COUNTIF($A$2:A46,KişiAlanı),0)),\"\")","v":""},""]
[{"$f":"IFERROR(INDEX(KişiAlanı,MATCH(0,COUNTIF($A$2:A47,KişiAlanı),0)),\"\")","v":""},""]
[{"$f":"IFERROR(INDEX(KişiAlanı,MATCH(0,COUNTIF($A$2:A48,KişiAlanı),0)),\"\")","v":""},""]
[{"$f":"IFERROR(INDEX(KişiAlanı,MATCH(0,COUNTIF($A$2:A49,KişiAlanı),0)),\"\")","v":""},""]
[{"$f":"IFERROR(INDEX(KişiAlanı,MATCH(0,COUNTIF($A$2:A50,KişiAlanı),0)),\"\")","v":""},""]
[{"$f":"IFERROR(INDEX(KişiAlanı,MATCH(0,COUNTIF($A$2:A51,KişiAlanı),0)),\"\")","v":""},""]
[{"$f":"IFERROR(INDEX(KişiAlanı,MATCH(0,COUNTIF($A$2:A52,KişiAlanı),0)),\"\")","v":""},""]
[{"$f":"IFERROR(INDEX(KişiAlanı,MATCH(0,COUNTIF($A$2:A53,KişiAlanı),0)),\"\")","v":""},""]
[{"$f":"IFERROR(INDEX(KişiAlanı,MATCH(0,COUNTIF($A$2:A54,KişiAlanı),0)),\"\")","v":""},""]
[{"$f":"IFERROR(INDEX(KişiAlanı,MATCH(0,COUNTIF($A$2:A55,KişiAlanı),0)),\"\")","v":""},""]
[{"$f":"IFERROR(INDEX(KişiAlanı,MATCH(0,COUNTIF($A$2:A56,KişiAlanı),0)),\"\")","v":""},""]
[{"$f":"IFERROR(INDEX(KişiAlanı,MATCH(0,COUNTIF($A$2:A57,KişiAlanı),0)),\"\")","v":""},""]
[{"$f":"IFERROR(INDEX(KişiAlanı,MATCH(0,COUNTIF($A$2:A58,KişiAlanı),0)),\"\")","v":""},""]
[{"$f":"IFERROR(INDEX(KişiAlanı,MATCH(0,COUNTIF($A$2:A59,KişiAlanı),0)),\"\")","v":""},""]
[{"$f":"IFERROR(INDEX(KişiAlanı,MATCH(0,COUNTIF($A$2:A60,KişiAlanı),0)),\"\")","v":""},""]
[{"$f":"IFERROR(INDEX(KişiAlanı,MATCH(0,COUNTIF($A$2:A61,KişiAlanı),0)),\"\")","v":""},""]
[{"$f":"IFERROR(INDEX(KişiAlanı,MATCH(0,COUNTIF($A$2:A62,KişiAlanı),0)),\"\")","v":""},""]
[{"$f":"IFERROR(INDEX(KişiAlanı,MATCH(0,COUNTIF($A$2:A63,KişiAlanı),0)),\"\")","v":""},""]
[{"$f":"IFERROR(INDEX(KişiAlanı,MATCH(0,COUNTIF($A$2:A64,KişiAlanı),0)),\"\")","v":""},""]
[{"$f":"IFERROR(INDEX(KişiAlanı,MATCH(0,COUNTIF($A$2:A65,KişiAlanı),0)),\"\")","v":""},""]
[{"$f":"IFERROR(INDEX(KişiAlanı,MATCH(0,COUNTIF($A$2:A66,KişiAlanı),0)),\"\")","v":""},""]
[{"$f":"IFERROR(INDEX(KişiAlanı,MATCH(0,COUNTIF($A$2:A67,KişiAlanı),0)),\"\")","v":""},{"$f":"IF(A68=\"\",\"\",ROW())","v":""}]
[{"$f":"IFERROR(INDEX(KişiAlanı,MATCH(0,COUNTIF($A$2:A68,KişiAlanı),0)),\"\")","v":""},""]
[{"$f":"IFERROR(INDEX(KişiAlanı,MATCH(0,COUNTIF($A$2:A69,KişiAlanı),0)),\"\")","v":""},""]
[{"$f":"IFERROR(INDEX(KişiAlanı,MATCH(0,COUNTIF($A$2:A70,KişiAlanı),0)),\"\")","v":""},""]
[{"$f":"IFERROR(INDEX(KişiAlanı,MATCH(0,COUNTIF($A$2:A71,KişiAlanı),0)),\"\")","v":""},""]
[{"$f":"IFERROR(INDEX(KişiAlanı,MATCH(0,COUNTIF($A$2:A72,KişiAlanı),0)),\"\")","v":""},""]
[{"$f":"IFERROR(INDEX(KişiAlanı,MATCH(0,COUNTIF($A$2:A73,KişiAlanı),0)),\"\")","v":""},""]
[{"$f":"IFERROR(INDEX(KişiAlanı,MATCH(0,COUNTIF($A$2:A74,KişiAlanı),0)),\"\")","v":""},""]
[{"$f":"IFERROR(INDEX(KişiAlanı,MATCH(0,COUNTIF($A$2:A75,KişiAlanı),0)),\"\")","v":""},""]
[{"$f":"IFERROR(INDEX(KişiAlanı,MATCH(0,COUNTIF($A$2:A76,KişiAlanı),0)),\"\")","v":""},""]
[{"$f":"IFERROR(INDEX(KişiAlanı,MATCH(0,COUNTIF($A$2:A77,KişiAlanı),0)),\"\")","v":""},""]
[{"$f":"IFERROR(INDEX(KişiAlanı,MATCH(0,COUNTIF($A$2:A78,KişiAlanı),0)),\"\")","v":""},""]
[{"$f":"IFERROR(INDEX(KişiAlanı,MATCH(0,COUNTIF($A$2:A79,KişiAlanı),0)),\"\")","v":""},""]
[{"$f":"IFERROR(INDEX(KişiAlanı,MATCH(0,COUNTIF($A$2:A80,KişiAlanı),0)),\"\")","v":""},""]
[{"$f":"IFERROR(INDEX(KişiAlanı,MATCH(0,COUNTIF($A$2:A81,KişiAlanı),0)),\"\")","v":""},""]
[{"$f":"IFERROR(INDEX(KişiAlanı,MATCH(0,COUNTIF($A$2:A82,KişiAlanı),0)),\"\")","v":""},""]
[{"$f":"IFERROR(INDEX(KişiAlanı,MATCH(0,COUNTIF($A$2:A83,KişiAlanı),0)),\"\")","v":""},""]
[{"$f":"IFERROR(INDEX(KişiAlanı,MATCH(0,COUNTIF($A$2:A84,KişiAlanı),0)),\"\")","v":""},""]
[{"$f":"IFERROR(INDEX(KişiAlanı,MATCH(0,COUNTIF($A$2:A85,KişiAlanı),0)),\"\")","v":""},""]
[{"$f":"IFERROR(INDEX(KişiAlanı,MATCH(0,COUNTIF($A$2:A86,KişiAlanı),0)),\"\")","v":""},""]
[{"$f":"IFERROR(INDEX(KişiAlanı,MATCH(0,COUNTIF($A$2:A87,KişiAlanı),0)),\"\")","v":""},""]
[{"$f":"IFERROR(INDEX(KişiAlanı,MATCH(0,COUNTIF($A$2:A88,KişiAlanı),0)),\"\")","v":""},""]
[{"$f":"IFERROR(INDEX(KişiAlanı,MATCH(0,COUNTIF($A$2:A89,KişiAlanı),0)),\"\")","v":""},""]
[{"$f":"IFERROR(INDEX(KişiAlanı,MATCH(0,COUNTIF($A$2:A90,KişiAlanı),0)),\"\")","v":""},""]
[{"$f":"IFERROR(INDEX(KişiAlanı,MATCH(0,COUNTIF($A$2:A91,KişiAlanı),0)),\"\")","v":""},""]
[{"$f":"IFERROR(INDEX(KişiAlanı,MATCH(0,COUNTIF($A$2:A92,KişiAlanı),0)),\"\")","v":""},""]
[{"$f":"IFERROR(INDEX(KişiAlanı,MATCH(0,COUNTIF($A$2:A93,KişiAlanı),0)),\"\")","v":""},""]
[{"$f":"IFERROR(INDEX(KişiAlanı,MATCH(0,COUNTIF($A$2:A94,KişiAlanı),0)),\"\")","v":""},""]
[{"$f":"IFERROR(INDEX(KişiAlanı,MATCH(0,COUNTIF($A$2:A95,KişiAlanı),0)),\"\")","v":""},""]
[{"$f":"IFERROR(INDEX(KişiAlanı,MATCH(0,COUNTIF($A$2:A96,KişiAlanı),0)),\"\")","v":""},""]
[{"$f":"IFERROR(INDEX(KişiAlanı,MATCH(0,COUNTIF($A$2:A97,KişiAlanı),0)),\"\")","v":""},""]
[{"$f":"IFERROR(INDEX(KişiAlanı,MATCH(0,COUNTIF($A$2:A98,KişiAlanı),0)),\"\")","v":""},""]
[{"$f":"IFERROR(INDEX(KişiAlanı,MATCH(0,COUNTIF($A$2:A99,KişiAlanı),0)),\"\")","v":""},""]
[{"$f":"IFERROR(INDEX(KişiAlanı,MATCH(0,COUNTIF($A$2:A100,KişiAlanı),0)),\"\")","v":""},""]
[{"$f":"IFERROR(INDEX(KişiAlanı,MATCH(0,COUNTIF($A$2:A101,KişiAlanı),0)),\"\")","v":""},""]
[{"$f":"IFERROR(INDEX(KişiAlanı,MATCH(0,COUNTIF($A$2:A102,KişiAlanı),0)),\"\")","v":""},""]
[{"$f":"IFERROR(INDEX(KişiAlanı,MATCH(0,COUNTIF($A$2:A103,KişiAlanı),0)),\"\")","v":""},""]
[{"$f":"IFERROR(INDEX(KişiAlanı,MATCH(0,COUNTIF($A$2:A104,KişiAlanı),0)),\"\")","v":""},""]
[{"$f":"IFERROR(INDEX(KişiAlanı,MATCH(0,COUNTIF($A$2:A105,KişiAlanı),0)),\"\")","v":""},""]
[{"$f":"IFERROR(INDEX(KişiAlanı,MATCH(0,COUNTIF($A$2:A106,KişiAlanı),0)),\"\")","v":""},""]
[{"$f":"IFERROR(INDEX(KişiAlanı,MATCH(0,COUNTIF($A$2:A107,KişiAlanı),0)),\"\")","v":""},""]
[{"$f":"IFERROR(INDEX(KişiAlanı,MATCH(0,COUNTIF($A$2:A108,KişiAlanı),0)),\"\")","v":""},""]
[{"$f":"IFERROR(INDEX(KişiAlanı,MATCH(0,COUNTIF($A$2:A109,KişiAlanı),0)),\"\")","v":""},""]
[{"$f":"IFERROR(INDEX(KişiAlanı,MATCH(0,COUNTIF($A$2:A110,KişiAlanı),0)),\"\")","v":""},""]
[{"$f":"IFERROR(INDEX(KişiAlanı,MATCH(0,COUNTIF($A$2:A111,KişiAlanı),0)),\"\")","v":""},""]
[{"$f":"IFERROR(INDEX(KişiAlanı,MATCH(0,COUNTIF($A$2:A112,KişiAlanı),0)),\"\")","v":""},""]
[{"$f":"IFERROR(INDEX(KişiAlanı,MATCH(0,COUNTIF($A$2:A113,KişiAlanı),0)),\"\")","v":""},""]
[{"$f":"IFERROR(INDEX(KişiAlanı,MATCH(0,COUNTIF($A$2:A114,KişiAlanı),0)),\"\")","v":""},""]
[{"$f":"IFERROR(INDEX(KişiAlanı,MATCH(0,COUNTIF($A$2:A115,KişiAlanı),0)),\"\")","v":""},""]
[{"$f":"IFERROR(INDEX(KişiAlanı,MATCH(0,COUNTIF($A$2:A116,KişiAlanı),0)),\"\")","v":""},""]
[{"$f":"IFERROR(INDEX(KişiAlanı,MATCH(0,COUNTIF($A$2:A117,KişiAlanı),0)),\"\")","v":""},""]
[{"$f":"IFERROR(INDEX(KişiAlanı,MATCH(0,COUNTIF($A$2:A118,KişiAlanı),0)),\"\")","v":""},""]
[{"$f":"IFERROR(INDEX(KişiAlanı,MATCH(0,COUNTIF($A$2:A119,KişiAlanı),0)),\"\")","v":""},""]
[{"$f":"IFERROR(INDEX(KişiAlanı,MATCH(0,COUNTIF($A$2:A120,KişiAlanı),0)),\"\")","v":""},""]
[{"$f":"IFERROR(INDEX(KişiAlanı,MATCH(0,COUNTIF($A$2:A121,KişiAlanı),0)),\"\")","v":""},""]
[{"$f":"IFERROR(INDEX(KişiAlanı,MATCH(0,COUNTIF($A$2:A122,KişiAlanı),0)),\"\")","v":""},""]
[{"$f":"IFERROR(INDEX(KişiAlanı,MATCH(0,COUNTIF($A$2:A123,KişiAlanı),0)),\"\")","v":""},""]
[{"$f":"IFERROR(INDEX(KişiAlanı,MATCH(0,COUNTIF($A$2:A124,KişiAlanı),0)),\"\")","v":""},""]
[{"$f":"IFERROR(INDEX(KişiAlanı,MATCH(0,COUNTIF($A$2:A125,KişiAlanı),0)),\"\")","v":""},""]
[{"$f":"IFERROR(INDEX(KişiAlanı,MATCH(0,COUNTIF($A$2:A126,KişiAlanı),0)),\"\")","v":""},""]
[{"$f":"IFERROR(INDEX(KişiAlanı,MATCH(0,COUNTIF($A$2:A127,KişiAlanı),0)),\"\")","v":""},""]
[{"$f":"IFERROR(INDEX(KişiAlanı,MATCH(0,COUNTIF($A$2:A128,KişiAlanı),0)),\"\")","v":""},""]
[{"$f":"IFERROR(INDEX(KişiAlanı,MATCH(0,COUNTIF($A$2:A129,KişiAlanı),0)),\"\")","v":""},""]
[{"$f":"IFERROR(INDEX(KişiAlanı,MATCH(0,COUNTIF($A$2:A130,KişiAlanı),0)),\"\")","v":""},""]
[{"$f":"IFERROR(INDEX(KişiAlanı,MATCH(0,COUNTIF($A$2:A131,KişiAlanı),0)),\"\")","v":""},{"$f":"IF(A132=\"\",\"\",ROW())","v":""}]